[Event "*** SCC Grand Prix: Titled Tuesday Blitz"]
[Site "Chess.com"]
[Date "2020.07.14"]
[Round "1"]
[White "Schandenfreude"]
[Black "pedro_nascimento85"]
[Result "1-0"]
[WhiteElo "2459"]
[BlackElo "1932"]
[TimeControl "180+1"]
[EndTime "10:06:52 PDT"]
[Termination "Schandenfreude won by resignation"]

1. Nf3 {[%clk 0:03:00.1]} 1... d5 {[%clk 0:02:58.3]} 2. b3 {[%clk 0:02:57.7]}
2... Nf6 {[%clk 0:02:56]} 3. Bb2 {[%clk 0:02:50.3]} 3... g6 {[%clk 0:02:55.1]}
4. e3 {[%clk 0:02:29.3]} 4... Bg7 {[%clk 0:02:40.2]} 5. c4 {[%clk 0:02:22.9]}
5... c6 {[%clk 0:02:35.3]} 6. Be2 {[%clk 0:02:22.7]} 6... O-O {[%clk 0:02:34.6]}
7. O-O {[%clk 0:02:22.4]} 7... Bg4 {[%clk 0:02:32.5]} 8. h3 {[%clk 0:02:22]}
8... Bxf3 {[%clk 0:02:32.1]} 9. Bxf3 {[%clk 0:02:22.9]} 9... e6 {[%clk
0:02:32.5]} 10. d4 {[%clk 0:02:22.8]} 10... Nbd7 {[%clk 0:02:31.6]} 11. Nd2
{[%clk 0:02:22.6]} 11... Rc8 {[%clk 0:02:30.5]} 12. Rc1 {[%clk 0:02:21.9]} 12...
Qa5 {[%clk 0:02:29.1]} 13. a3 {[%clk 0:02:20.8]} 13... Qc7 {[%clk 0:02:23.6]}
14. b4 {[%clk 0:02:18.2]} 14... Qd6 {[%clk 0:02:07.6]} 15. Qb3 {[%clk
0:02:15.1]} 15... e5 {[%clk 0:02:01.4]} 16. cxd5 {[%clk 0:02:13.1]} 16... Nxd5
{[%clk 0:01:56.4]} 17. Bxd5 {[%clk 0:02:10.8]} 17... cxd5 {[%clk 0:01:55.8]} 18.
dxe5 {[%clk 0:02:07.6]} 18... Bxe5 {[%clk 0:01:54.7]} 19. Nf3 {[%clk 0:01:59.1]}
19... Bxb2 {[%clk 0:01:52]} 20. Qxb2 {[%clk 0:01:58.6]} 20... Qf6 {[%clk
0:01:45.2]} 21. Qd2 {[%clk 0:01:54.5]} 21... Nb6 {[%clk 0:01:43.2]} 22. Rfd1
{[%clk 0:01:44.9]} 22... Rfd8 {[%clk 0:01:32.4]} 23. Qd4 {[%clk 0:01:16.1]}
23... Qxd4 {[%clk 0:01:21.9]} 24. Nxd4 {[%clk 0:01:15.6]} 24... Nc4 {[%clk
0:01:22.4]} 25. a4 {[%clk 0:01:11.7]} 25... Kg7 {[%clk 0:01:16.7]} 26. Ne2
{[%clk 0:01:02.5]} 26... Nb2 {[%clk 0:01:13.3]} 27. Rxc8 {[%clk 0:00:58.9]}
27... Rxc8 {[%clk 0:01:14.2]} 28. Ra1 {[%clk 0:00:58.5]} 28... Rc2 {[%clk
0:01:11.2]} 29. Nf4 {[%clk 0:00:57.1]} 29... Rd2 {[%clk 0:01:09.7]} 30. Ra2
{[%clk 0:00:51]} 30... g5 {[%clk 0:01:09]} 31. Nxd5 {[%clk 0:00:48.1]} 31...
Rxd5 {[%clk 0:01:04.2]} 32. Rxb2 {[%clk 0:00:48.1]} 32... f5 {[%clk 0:01:02.7]}
33. Kf1 {[%clk 0:00:47.9]} 33... f4 {[%clk 0:01:01.5]} 34. Ke2 {[%clk
0:00:45.6]} 34... Kf6 {[%clk 0:00:58.9]} 35. Rd2 {[%clk 0:00:44.4]} 35... Re5
{[%clk 0:00:56.5]} 36. Rd7 {[%clk 0:00:43.7]} 36... Re4 {[%clk 0:00:56.4]} 37.
Rxb7 {[%clk 0:00:41.9]} 37... fxe3 {[%clk 0:00:56.5]} 38. fxe3 {[%clk
0:00:41.3]} 38... h5 {[%clk 0:00:56.6]} 39. a5 {[%clk 0:00:36.2]} 39... a6
{[%clk 0:00:55.6]} 40. Kd3 {[%clk 0:00:31]} 40... Re5 {[%clk 0:00:47.2]} 41.
Rb6+ {[%clk 0:00:30.3]} 41... Kf5 {[%clk 0:00:45.7]} 42. Rxa6 {[%clk 0:00:30.6]}
1-0

[Event "*** SCC Grand Prix: Titled Tuesday Blitz"]
[Site "Chess.com"]
[Date "2020.07.14"]
[Round "1"]
[White "profofchess"]
[Black "rududuyk"]
[Result "1-0"]
[WhiteElo "2479"]
[BlackElo "2079"]
[TimeControl "180+1"]
[EndTime "10:06:54 PDT"]
[Termination "profofchess won by resignation"]

1. e4 {[%clk 0:03:00.3]} 1... e6 {[%clk 0:02:59.7]} 2. d4 {[%clk 0:02:58.8]}
2... d5 {[%clk 0:03:00]} 3. Nc3 {[%clk 0:02:58.8]} 3... Nf6 {[%clk 0:02:58.5]}
4. Bg5 {[%clk 0:02:58.2]} 4... dxe4 {[%clk 0:02:57.9]} 5. Nxe4 {[%clk
0:02:57.9]} 5... Be7 {[%clk 0:02:58.2]} 6. Bxf6 {[%clk 0:02:58]} 6... gxf6
{[%clk 0:02:58.1]} 7. Nf3 {[%clk 0:02:58.4]} 7... a6 {[%clk 0:02:57.8]} 8. g3
{[%clk 0:02:57.4]} 8... f5 {[%clk 0:02:53.5]} 9. Nc3 {[%clk 0:02:57.1]} 9... b5
{[%clk 0:02:44.1]} 10. Bg2 {[%clk 0:02:56.7]} 10... Bb7 {[%clk 0:02:43.9]} 11.
O-O {[%clk 0:02:54.2]} 11... Bf6 {[%clk 0:02:28.6]} 12. Qe2 {[%clk 0:02:41.9]}
12... O-O {[%clk 0:02:08.5]} 13. Rad1 {[%clk 0:02:40.3]} 13... Nd7 {[%clk
0:01:46.9]} 14. d5 {[%clk 0:02:08]} 14... e5 {[%clk 0:01:39.5]} 15. Nh4 {[%clk
0:02:07.3]} 15... Bxh4 {[%clk 0:01:26.4]} 16. gxh4 {[%clk 0:02:08.2]} 16... Qxh4
{[%clk 0:01:26.3]} 17. Qf3 {[%clk 0:02:06.3]} 17... f4 {[%clk 0:01:15.1]} 18.
Kh1 {[%clk 0:01:51.2]} 18... Kh8 {[%clk 0:01:08.4]} 19. Rg1 {[%clk 0:01:37.3]}
19... f5 {[%clk 0:00:54.9]} 20. Qh3 {[%clk 0:01:31.5]} 20... Qxf2 {[%clk
0:00:42.2]} 21. d6 {[%clk 0:01:25.2]} 21... f3 {[%clk 0:00:29.4]} 22. Bf1 {[%clk
0:01:21.5]} 22... c5 {[%clk 0:00:24.4]} 23. Nd5 {[%clk 0:01:19.8]} 23... Qxc2
{[%clk 0:00:20.1]} 24. Qxf3 {[%clk 0:01:17.9]} 24... Nf6 {[%clk 0:00:18.4]} 25.
Qg2 {[%clk 0:01:09.6]} 25... Rg8 {[%clk 0:00:15.4]} 26. Qxc2 {[%clk 0:01:07.4]}
26... Nxd5 {[%clk 0:00:09.8]} 27. Rxd5 {[%clk 0:00:40.2]} 27... Bxd5+ {[%clk
0:00:09.2]} 28. Bg2 {[%clk 0:00:40.2]} 28... e4 {[%clk 0:00:09.3]} 29. Qc3+
{[%clk 0:00:38.7]} 29... Rg7 {[%clk 0:00:08.9]} 30. Qe5 {[%clk 0:00:34]} 30...
Bb7 {[%clk 0:00:05.9]} 31. d7 {[%clk 0:00:32.2]} 31... Rg8 {[%clk 0:00:06.3]}
32. h3 {[%clk 0:00:23.1]} 32... e3 {[%clk 0:00:05.7]} 33. Bxb7 {[%clk
0:00:21.9]} 1-0

[Event "*** SCC Grand Prix: Titled Tuesday Blitz"]
[Site "Chess.com"]
[Date "2020.07.14"]
[Round "1"]
[White "Shushik"]
[Black "Meri-Arabidze"]
[Result "0-1"]
[WhiteElo "2227"]
[BlackElo "2561"]
[TimeControl "180+1"]
[EndTime "10:06:55 PDT"]
[Termination "Meri-Arabidze won by checkmate"]

1. e4 {[%clk 0:03:00.9]} 1... c5 {[%clk 0:02:59.6]} 2. Nf3 {[%clk 0:03:00.9]}
2... e6 {[%clk 0:03:00.5]} 3. d4 {[%clk 0:03:00.8]} 3... cxd4 {[%clk 0:03:01.4]}
4. Nxd4 {[%clk 0:03:01.1]} 4... Nc6 {[%clk 0:03:02.3]} 5. Nc3 {[%clk 0:03:01.2]}
5... a6 {[%clk 0:03:02.4]} 6. Be3 {[%clk 0:02:58.6]} 6... Qc7 {[%clk 0:03:01.9]}
7. Qf3 {[%clk 0:02:58.3]} 7... Nf6 {[%clk 0:03:01.1]} 8. Qg3 {[%clk 0:02:54.1]}
8... Qxg3 {[%clk 0:02:55.4]} 9. hxg3 {[%clk 0:02:53.7]} 9... Bb4 {[%clk
0:02:54.9]} 10. f3 {[%clk 0:02:52]} 10... d5 {[%clk 0:02:54.4]} 11. Nxc6 {[%clk
0:02:27.7]} 11... bxc6 {[%clk 0:02:55.3]} 12. e5 {[%clk 0:02:27.8]} 12... Nd7
{[%clk 0:02:54.7]} 13. a3 {[%clk 0:02:26.8]} 13... Bxc3+ {[%clk 0:02:49.4]} 14.
bxc3 {[%clk 0:02:26.7]} 14... Nxe5 {[%clk 0:02:50.2]} 15. Bd4 {[%clk 0:02:26.6]}
15... f6 {[%clk 0:02:50.4]} 16. g4 {[%clk 0:02:20.8]} 16... Ng6 {[%clk
0:02:46.8]} 17. Bd3 {[%clk 0:02:14.5]} 17... O-O {[%clk 0:02:45.5]} 18. Kf2
{[%clk 0:02:06]} 18... e5 {[%clk 0:02:44.2]} 19. Bc5 {[%clk 0:02:05.2]} 19...
Rf7 {[%clk 0:02:32.8]} 20. Rh2 {[%clk 0:01:56.1]} 20... f5 {[%clk 0:02:31.3]}
21. gxf5 {[%clk 0:01:39.9]} 21... Bxf5 {[%clk 0:02:32.2]} 22. Rah1 {[%clk
0:01:36.8]} 22... h6 {[%clk 0:02:26.7]} 23. g4 {[%clk 0:01:28.2]} 23... Bxd3
{[%clk 0:02:24.4]} 24. cxd3 {[%clk 0:01:28.1]} 24... Nf4 {[%clk 0:02:25.3]} 25.
Ke3 {[%clk 0:01:27.1]} 25... Ne6 {[%clk 0:02:18.5]} 26. Bd6 {[%clk 0:01:25]}
26... Ng5 {[%clk 0:02:18.5]} 27. Rf2 {[%clk 0:01:15.3]} 27... Re8 {[%clk
0:02:17.1]} 28. Rb1 {[%clk 0:01:12.1]} 28... Re6 {[%clk 0:02:12.2]} 29. Bb8
{[%clk 0:01:00.7]} 29... Ref6 {[%clk 0:02:10.2]} 30. Rbf1 {[%clk 0:00:54.3]}
30... Re6 {[%clk 0:02:10.1]} 31. Rb1 {[%clk 0:00:53.6]} 31... c5 {[%clk
0:02:05.2]} 32. a4 {[%clk 0:00:41.8]} 32... d4+ {[%clk 0:02:05.1]} 33. cxd4
{[%clk 0:00:41.4]} 33... exd4+ {[%clk 0:02:04.9]} 34. Kd2 {[%clk 0:00:38.5]}
34... Rxf3 {[%clk 0:02:04.3]} 35. Rbf1 {[%clk 0:00:32.5]} 35... Ree3 {[%clk
0:02:00.8]} 36. Rxf3 {[%clk 0:00:29]} 36... Nxf3+ {[%clk 0:02:01.7]} 37. Kc2
{[%clk 0:00:26.9]} 37... Ne1+ {[%clk 0:02:00.1]} 38. Kd2 {[%clk 0:00:21.3]}
38... Nxd3 {[%clk 0:02:00.1]} 39. Bd6 {[%clk 0:00:17.3]} 39... c4 {[%clk
0:01:58.7]} 40. Rf8+ {[%clk 0:00:16.1]} 40... Kh7 {[%clk 0:01:58.1]} 41. Rc8
{[%clk 0:00:15.3]} 41... c3+ {[%clk 0:01:56.7]} 42. Rxc3 {[%clk 0:00:12.1]}
42... dxc3+ {[%clk 0:01:53.6]} 43. Kxe3 {[%clk 0:00:12.1]} 43... c2 {[%clk
0:01:54.1]} 44. Ba3 {[%clk 0:00:12]} 44... c1=Q+ {[%clk 0:01:54.2]} 45. Bxc1
{[%clk 0:00:12.1]} 45... Nxc1 {[%clk 0:01:55.1]} 46. Kd4 {[%clk 0:00:11.7]}
46... g6 {[%clk 0:01:53.8]} 47. Kc4 {[%clk 0:00:11]} 47... h5 {[%clk 0:01:53.5]}
48. gxh5 {[%clk 0:00:10.2]} 48... gxh5 {[%clk 0:01:54.4]} 49. Kb4 {[%clk
0:00:10.3]} 49... h4 {[%clk 0:01:54.7]} 50. Ka5 {[%clk 0:00:10.4]} 50... h3
{[%clk 0:01:55]} 51. Kxa6 {[%clk 0:00:10.7]} 51... h2 {[%clk 0:01:55.2]} 52. a5
{[%clk 0:00:10.7]} 52... h1=Q {[%clk 0:01:54.6]} 53. Kb6 {[%clk 0:00:10.2]}
53... Qg1+ {[%clk 0:01:54.1]} 54. Kb7 {[%clk 0:00:09.8]} 54... Qg2+ {[%clk
0:01:54.6]} 55. Kb6 {[%clk 0:00:09.8]} 55... Qf2+ {[%clk 0:01:55.2]} 56. Kb7
{[%clk 0:00:09.8]} 56... Qf3+ {[%clk 0:01:56.1]} 57. Kb6 {[%clk 0:00:09.9]}
57... Qe3+ {[%clk 0:01:56.8]} 58. Kb7 {[%clk 0:00:10.1]} 58... Qe4+ {[%clk
0:01:57.7]} 59. Kb6 {[%clk 0:00:10.4]} 59... Qb4+ {[%clk 0:01:57.5]} 60. Ka6
{[%clk 0:00:10.2]} 60... Nb3 {[%clk 0:01:56.4]} 61. Ka7 {[%clk 0:00:10.2]} 61...
Nxa5 {[%clk 0:01:54.2]} 62. Ka6 {[%clk 0:00:10]} 62... Nc4 {[%clk 0:01:51.7]}
63. Ka7 {[%clk 0:00:09.8]} 63... Nd6 {[%clk 0:01:51.8]} 64. Ka6 {[%clk 0:00:09]}
64... Qb5+ {[%clk 0:01:51.5]} 65. Ka7 {[%clk 0:00:09]} 65... Qb7# {[%clk
0:01:52.4]} 0-1

[Event "*** SCC Grand Prix: Titled Tuesday Blitz"]
[Site "Chess.com"]
[Date "2020.07.14"]
[Round "1"]
[White "MuradNuri"]
[Black "Annawel"]
[Result "0-1"]
[WhiteElo "2441"]
[BlackElo "2972"]
[TimeControl "180+1"]
[EndTime "10:06:57 PDT"]
[Termination "Annawel won by resignation"]

1. e4 {[%clk 0:02:25.8]} 1... c5 {[%clk 0:02:59]} 2. Nf3 {[%clk 0:02:26]} 2...
d6 {[%clk 0:02:59.6]} 3. d4 {[%clk 0:02:26.5]} 3... cxd4 {[%clk 0:03:00.5]} 4.
Nxd4 {[%clk 0:02:26.7]} 4... Nf6 {[%clk 0:03:01]} 5. Nc3 {[%clk 0:02:27.1]} 5...
a6 {[%clk 0:03:01.6]} 6. Nb3 {[%clk 0:02:26.7]} 6... e6 {[%clk 0:03:00.1]} 7. g4
{[%clk 0:02:22.8]} 7... b5 {[%clk 0:03:00.4]} 8. g5 {[%clk 0:02:23.2]} 8... b4
{[%clk 0:03:00.4]} 9. Na4 {[%clk 0:01:57.3]} 9... Nxe4 {[%clk 0:02:56.2]} 10.
Qd4 {[%clk 0:01:57]} 10... d5 {[%clk 0:02:42]} 11. Nb6 {[%clk 0:01:55.9]} 11...
Nc6 {[%clk 0:02:30.7]} 12. Qe3 {[%clk 0:01:46.4]} 12... Rb8 {[%clk 0:02:30.7]}
13. Nxc8 {[%clk 0:01:46.8]} 13... Qxc8 {[%clk 0:02:31.6]} 14. Bd3 {[%clk
0:01:38.9]} 14... Nd6 {[%clk 0:02:14.1]} 15. Nc5 {[%clk 0:01:39]} 15... Nc4
{[%clk 0:02:07.9]} 16. Bxc4 {[%clk 0:01:36.9]} 16... dxc4 {[%clk 0:02:08.8]} 17.
O-O {[%clk 0:01:27.8]} 17... Be7 {[%clk 0:02:03]} 18. Rd1 {[%clk 0:01:25.8]}
18... O-O {[%clk 0:01:55.2]} 19. Ne4 {[%clk 0:01:20.3]} 19... Rb5 {[%clk
0:01:52.5]} 20. Qe2 {[%clk 0:01:01.1]} 20... Rd5 {[%clk 0:01:49]} 21. Be3 {[%clk
0:00:55]} 21... Rfd8 {[%clk 0:01:48.9]} 22. Re1 {[%clk 0:00:49.7]} 22... Nd4
{[%clk 0:01:46.9]} 23. Qg4 {[%clk 0:00:34.4]} 23... e5 {[%clk 0:01:28.7]} 24.
Qg2 {[%clk 0:00:32.1]} 24... Qf5 {[%clk 0:01:26.3]} 25. Bxd4 {[%clk 0:00:28.7]}
25... Rxd4 {[%clk 0:01:27.2]} 26. c3 {[%clk 0:00:23.8]} 26... bxc3 {[%clk
0:01:26]} 27. bxc3 {[%clk 0:00:24.7]} 27... Rd3 {[%clk 0:01:26.2]} 28. Rab1
{[%clk 0:00:25.3]} 28... Bf8 {[%clk 0:01:10.6]} 29. a4 {[%clk 0:00:22.8]} 29...
a5 {[%clk 0:01:09.3]} 30. h4 {[%clk 0:00:22.6]} 30... Qf4 {[%clk 0:01:08.3]} 31.
h5 {[%clk 0:00:21.5]} 31... h6 {[%clk 0:00:53.1]} 32. g6 {[%clk 0:00:20.7]}
32... Qf5 {[%clk 0:00:53.1]} 33. Ng3 {[%clk 0:00:18.8]} 33... Qe6 {[%clk
0:00:48.5]} 34. gxf7+ {[%clk 0:00:17.8]} 34... Qxf7 {[%clk 0:00:49.4]} 35. Rb7
{[%clk 0:00:18.3]} 35... Qf4 {[%clk 0:00:44.4]} 36. Re4 {[%clk 0:00:15.8]} 36...
Rd1+ {[%clk 0:00:44.1]} 37. Kh2 {[%clk 0:00:16.2]} 37... Qf6 {[%clk 0:00:43.7]}
38. Rxc4 {[%clk 0:00:15.8]} 38... R8d2 {[%clk 0:00:36.3]} 39. Ne4 {[%clk
0:00:10.8]} 39... Qh4+ {[%clk 0:00:35.9]} 40. Qh3 {[%clk 0:00:11.2]} 40... Rh1+
{[%clk 0:00:35.9]} 0-1

[Event "*** SCC Grand Prix: Titled Tuesday Blitz"]
[Site "Chess.com"]
[Date "2020.07.14"]
[Round "1"]
[White "rasmussvane"]
[Black "SharapovEvgeny"]
[Result "1-0"]
[WhiteElo "2886"]
[BlackElo "2431"]
[TimeControl "180+1"]
[EndTime "10:06:57 PDT"]
[Termination "rasmussvane won by resignation"]

1. Nf3 {[%clk 0:03:00.1]} 1... c5 {[%clk 0:02:58.8]} 2. c4 {[%clk 0:02:57.4]}
2... Nc6 {[%clk 0:02:58]} 3. Nc3 {[%clk 0:02:57.2]} 3... e5 {[%clk 0:02:57.6]}
4. e3 {[%clk 0:02:57.3]} 4... Nf6 {[%clk 0:02:56.3]} 5. d4 {[%clk 0:02:57.9]}
5... cxd4 {[%clk 0:02:55.8]} 6. exd4 {[%clk 0:02:58.8]} 6... e4 {[%clk
0:02:55.9]} 7. Ne5 {[%clk 0:02:59.2]} 7... Bb4 {[%clk 0:02:54.4]} 8. Be2 {[%clk
0:02:59]} 8... Qa5 {[%clk 0:02:53.4]} 9. Nxc6 {[%clk 0:02:55.9]} 9... dxc6
{[%clk 0:02:52.9]} 10. Bd2 {[%clk 0:02:55.9]} 10... Bxc3 {[%clk 0:02:50.9]} 11.
Bxc3 {[%clk 0:02:55.2]} 11... Qg5 {[%clk 0:02:50.3]} 12. g3 {[%clk 0:02:29.3]}
12... O-O {[%clk 0:02:48.1]} 13. Qd2 {[%clk 0:02:29.1]} 13... Qg6 {[%clk
0:02:41.9]} 14. O-O {[%clk 0:02:16]} 14... Bg4 {[%clk 0:02:38.7]} 15. Rfe1
{[%clk 0:02:11]} 15... Rad8 {[%clk 0:02:33.3]} 16. Qf4 {[%clk 0:02:05.3]} 16...
Rfe8 {[%clk 0:02:27]} 17. Bxg4 {[%clk 0:01:47.3]} 17... Qxg4 {[%clk 0:02:22.9]}
18. Qxg4 {[%clk 0:01:45.4]} 18... Nxg4 {[%clk 0:02:22.9]} 19. h3 {[%clk
0:01:39.5]} 19... Nf6 {[%clk 0:02:21.7]} 20. Re2 {[%clk 0:01:37.1]} 20... h5
{[%clk 0:02:12.9]} 21. Rae1 {[%clk 0:01:35.2]} 21... Kh7 {[%clk 0:02:12.5]} 22.
Kg2 {[%clk 0:01:34.6]} 22... Kg6 {[%clk 0:02:12.1]} 23. f3 {[%clk 0:01:15.5]}
23... exf3+ {[%clk 0:02:10.6]} 24. Kxf3 {[%clk 0:01:16.4]} 24... Rxe2 {[%clk
0:02:09.7]} 25. Rxe2 {[%clk 0:01:17.3]} 25... Re8 {[%clk 0:02:09.1]} 26. Rxe8
{[%clk 0:01:03.8]} 26... Nxe8 {[%clk 0:02:08.5]} 27. Kf4 {[%clk 0:01:04.4]}
27... f6 {[%clk 0:01:59]} 28. Bb4 {[%clk 0:00:50.5]} 28... Nc7 {[%clk
0:01:55.2]} 29. Ke4 {[%clk 0:00:48.3]} 29... Ne6 {[%clk 0:01:48.4]} 30. Bd2
{[%clk 0:00:33]} 30... Kf7 {[%clk 0:01:41]} 31. Be3 {[%clk 0:00:32.9]} 31... Ke7
{[%clk 0:01:39.8]} 32. d5 {[%clk 0:00:31.6]} 32... cxd5+ {[%clk 0:01:39.3]} 33.
cxd5 {[%clk 0:00:32.4]} 33... Nc7 {[%clk 0:01:34.9]} 34. Bxa7 {[%clk 0:00:32.6]}
34... Nb5 {[%clk 0:01:32.9]} 35. Bc5+ {[%clk 0:00:31.7]} 35... Kd7 {[%clk
0:01:32.5]} 36. a4 {[%clk 0:00:32.2]} 36... Nc7 {[%clk 0:01:30.4]} 37. b3 {[%clk
0:00:30.5]} 37... Na6 {[%clk 0:01:28.6]} 38. Bf8 {[%clk 0:00:28.7]} 38... g6
{[%clk 0:01:27.6]} 39. Kd4 {[%clk 0:00:28.2]} 39... Nc7 {[%clk 0:01:25.3]} 40.
Bc5 {[%clk 0:00:26.1]} 40... Na6 {[%clk 0:01:20.9]} 41. b4 {[%clk 0:00:25.4]}
41... Nc7 {[%clk 0:01:11.4]} 42. b5 {[%clk 0:00:24.6]} 42... Ne8 {[%clk
0:01:09.6]} 43. a5 {[%clk 0:00:17.2]} 43... Nc7 {[%clk 0:01:08.7]} 44. Kc4
{[%clk 0:00:17.3]} 44... g5 {[%clk 0:01:05.2]} 45. Bd4 {[%clk 0:00:15.8]} 45...
f5 {[%clk 0:01:04.4]} 46. Be5 {[%clk 0:00:16.3]} 46... Ne8 {[%clk 0:00:58.6]}
47. Kc5 {[%clk 0:00:09.4]} 1-0

[Event "*** SCC Grand Prix: Titled Tuesday Blitz"]
[Site "Chess.com"]
[Date "2020.07.14"]
[Round "1"]
[White "Zubrrr"]
[Black "anon569"]
[Result "1-0"]
[WhiteElo "2639"]
[BlackElo "2320"]
[TimeControl "180+1"]
[EndTime "10:06:57 PDT"]
[Termination "Zubrrr won by resignation"]

1. d4 {[%clk 0:02:55.9]} 1... Nf6 {[%clk 0:02:56.1]} 2. c4 {[%clk 0:02:54.2]}
2... e6 {[%clk 0:02:56.2]} 3. g3 {[%clk 0:02:53.8]} 3... Bb4+ {[%clk 0:02:55.5]}
4. Bd2 {[%clk 0:02:53]} 4... c5 {[%clk 0:02:56]} 5. Bxb4 {[%clk 0:02:51.4]} 5...
cxb4 {[%clk 0:02:56.2]} 6. Bg2 {[%clk 0:02:51.3]} 6... O-O {[%clk 0:02:51.3]} 7.
e4 {[%clk 0:02:46.1]} 7... d6 {[%clk 0:02:50.9]} 8. Ne2 {[%clk 0:02:45.3]} 8...
e5 {[%clk 0:02:46.8]} 9. O-O {[%clk 0:02:36.8]} 9... Nc6 {[%clk 0:02:46.2]} 10.
Qd2 {[%clk 0:02:34.8]} 10... Re8 {[%clk 0:02:43.2]} 11. d5 {[%clk 0:02:21.6]}
11... Ne7 {[%clk 0:02:23.3]} 12. Qxb4 {[%clk 0:02:18.4]} 12... b6 {[%clk
0:02:19.3]} 13. Nd2 {[%clk 0:02:10.7]} 13... Ng6 {[%clk 0:02:16.1]} 14. Nc1
{[%clk 0:02:01.2]} 14... Qe7 {[%clk 0:02:05.6]} 15. Nd3 {[%clk 0:01:57.1]} 15...
Nd7 {[%clk 0:02:05.4]} 16. Qc3 {[%clk 0:01:47.1]} 16... Nc5 {[%clk 0:01:56.8]}
17. Rae1 {[%clk 0:01:13.1]} 17... f5 {[%clk 0:01:53.6]} 18. exf5 {[%clk
0:00:58.2]} 18... Bxf5 {[%clk 0:01:52.6]} 19. Ne4 {[%clk 0:00:58]} 19... Nxd3
{[%clk 0:01:50.2]} 20. Qxd3 {[%clk 0:00:57.5]} 20... Rf8 {[%clk 0:01:50]} 21.
Qa3 {[%clk 0:00:47.7]} 21... Rad8 {[%clk 0:01:46.5]} 22. b3 {[%clk 0:00:46]}
22... Qd7 {[%clk 0:01:45.2]} 23. Ng5 {[%clk 0:00:35.6]} 23... Kh8 {[%clk
0:01:32.3]} 24. Ne6 {[%clk 0:00:33.7]} 24... Bxe6 {[%clk 0:01:29.3]} 25. dxe6
{[%clk 0:00:34.6]} 25... Qxe6 {[%clk 0:01:29.7]} 26. Qxa7 {[%clk 0:00:34.2]}
26... Rb8 {[%clk 0:01:11.8]} 27. f4 {[%clk 0:00:25.8]} 27... Qg4 {[%clk
0:01:05.9]} 28. f5 {[%clk 0:00:22.2]} 28... Qd4+ {[%clk 0:00:41.7]} 29. Kh1
{[%clk 0:00:17.2]} 1-0

[Event "*** SCC Grand Prix: Titled Tuesday Blitz"]
[Site "Chess.com"]
[Date "2020.07.14"]
[Round "1"]
[White "VladimirBugayev"]
[Black "Filip_Covic"]
[Result "0-1"]
[WhiteElo "2110"]
[BlackElo "2489"]
[TimeControl "180+1"]
[EndTime "10:06:58 PDT"]
[Termination "Filip_Covic won on time"]

1. e4 {[%clk 0:03:00.6]} 1... e5 {[%clk 0:02:52.7]} 2. Nf3 {[%clk 0:02:59.7]}
2... Nc6 {[%clk 0:02:52.1]} 3. Nc3 {[%clk 0:03:00.2]} 3... Nf6 {[%clk
0:02:50.9]} 4. d4 {[%clk 0:03:00.3]} 4... exd4 {[%clk 0:02:49.7]} 5. Nxd4 {[%clk
0:03:00.6]} 5... d6 {[%clk 0:02:49.2]} 6. Bb5 {[%clk 0:02:58.5]} 6... Bd7 {[%clk
0:02:48.7]} 7. Bxc6 {[%clk 0:02:56.1]} 7... bxc6 {[%clk 0:02:49.6]} 8. Qf3
{[%clk 0:02:55.3]} 8... Ng4 {[%clk 0:02:44]} 9. O-O {[%clk 0:02:35.7]} 9... Ne5
{[%clk 0:02:43.8]} 10. Qg3 {[%clk 0:02:35.1]} 10... h5 {[%clk 0:02:36.6]} 11. f4
{[%clk 0:02:26.2]} 11... h4 {[%clk 0:02:34.2]} 12. Qe1 {[%clk 0:02:26]} 12...
Ng4 {[%clk 0:02:20]} 13. h3 {[%clk 0:02:23.6]} 13... Nh6 {[%clk 0:02:09.3]} 14.
e5 {[%clk 0:01:59.3]} 14... Qe7 {[%clk 0:01:58.6]} 15. exd6 {[%clk 0:01:46]}
15... cxd6 {[%clk 0:01:59.5]} 16. Qf2 {[%clk 0:01:38.2]} 16... O-O-O {[%clk
0:01:57.2]} 17. Re1 {[%clk 0:01:09.6]} 17... Qf6 {[%clk 0:01:57]} 18. Ndb5
{[%clk 0:01:00.6]} 18... cxb5 {[%clk 0:01:31.2]} 19. Nd5 {[%clk 0:01:00.3]}
19... Qf5 {[%clk 0:01:23.4]} 20. Qxa7 {[%clk 0:00:57.4]} 20... Qxd5 {[%clk
0:01:19.9]} 21. Be3 {[%clk 0:00:50.3]} 21... Qb7 {[%clk 0:01:16.4]} 22. Qa5
{[%clk 0:00:45.8]} 22... Nf5 {[%clk 0:01:10.2]} 23. Rad1 {[%clk 0:00:38.9]}
23... Nxe3 {[%clk 0:01:00.9]} 24. Rxe3 {[%clk 0:00:37.4]} 24... d5 {[%clk
0:00:41.3]} 25. Rc3+ {[%clk 0:00:19.9]} 25... Bc6 {[%clk 0:00:41.5]} 26. a4
{[%clk 0:00:18.7]} 26... b4 {[%clk 0:00:33.8]} 27. Rb3 {[%clk 0:00:14.9]} 27...
Bd6 {[%clk 0:00:29.5]} 28. Rd4 {[%clk 0:00:13.5]} 28... Bc7 {[%clk 0:00:25.6]}
29. Qxb4 {[%clk 0:00:08]} 29... Qxb4 {[%clk 0:00:25.1]} 30. Rdxb4 {[%clk
0:00:08.1]} 30... Ba5 {[%clk 0:00:19.5]} 31. Rd4 {[%clk 0:00:01.7]} 31... Kc7
{[%clk 0:00:19.7]} 0-1